bitfinex-derivatives/quotes_BTCF0:USTF0_20250119
["timestamp","ask_amount","ask_price","bid_price","bid_amount"]
[1737294946341,0.73472926,105200.0,105190.0,0.41614825]
[1737294947050,0.73472926,105200.0,105190.0,0.41614839]
[1737294947949,0.68712726,105200.0,105190.0,0.41614839]
[1737294948149,0.48092726,105200.0,105190.0,0.41614839]
[1737294948349,0.48092726,105200.0,105190.0,0.41614829]
[1737294948645,0.27072726,105200.0,105190.0,0.41614829]
[1737294948836,0.24241823,105200.0,105190.0,0.79354855]
[1737294949034,0.05274726,105210.0,105200.0,0.057602]
[1737294949240,0.42650788,105230.0,105220.0,0.057593]
[1737294949543,0.42650788,105230.0,105220.0,0.78693529]
[1737294950147,0.60954091,105260.0,105250.0,0.047579]
[1737294950355,0.22790786,105270.0,105250.0,0.78692129]
[1737294950649,0.42732724,105270.0,105260.0,0.3708]
[1737294950859,0.42732724,105270.0,105260.0,0.37854229]
[1737294951542,0.42732724,105270.0,105260.0,0.01774229]
[1737294951742,0.42732724,105270.0,105260.0,0.37854229]
[1737294952046,0.42732724,105270.0,105260.0,0.01774229]
[1737294952254,0.047568,105280.0,105260.0,0.77685416]
[1737294952444,0.047568,105280.0,105260.0,0.40605416]
[1737294952642,0.047568,105280.0,105260.0,0.77685416]
[1737294952838,0.5775,105290.0,105270.0,0.3608]
[1737294952839,0.3608,105290.0,105270.0,0.3608]
[1737294953044,0.595159,105300.0,105270.0,0.3637778]
[1737294953243,0.595159,105300.0,105270.0,0.53406964]
[1737294953449,0.3608,105290.0,105270.0,0.53406964]
[1737294953851,0.408361,105290.0,105270.0,0.53406964]
[1737294954050,1.1254,105300.0,105270.0,0.53883067]
[1737294954255,0.7646,105300.0,105280.0,0.3608]
[1737294954940,0.7646,105300.0,105280.0,0.36377552]
[1737294955345,0.7646,105300.0,105280.0,0.00773598]
[1737294955545,0.7646,105300.0,105280.0,0.00297552]
[1737294955942,0.77610946,105300.0,105290.0,0.3608]
[1737294956251,0.77610946,105300.0,105280.0,0.3608]
[1737294956442,0.77610946,105300.0,105280.0,0.36853558]
[1737294957149,0.77610946,105300.0,105290.0,0.3608]
[1737294957945,0.7646,105300.0,105290.0,0.3608]
[1737294959355,1.1254,105300.0,105270.0,0.62965699]
[1737294959557,1.1254,105300.0,105270.0,0.28254323]
[1737294959860,0.3608,105280.0,105270.0,0.21128699]
[1737294965751,0.37269108,105290.0,105270.0,0.21128699]
[1737294965951,0.37269108,105290.0,105270.0,0.57208699]
[1737294966164,0.37269108,105290.0,105270.0,0.57982437]
[1737294967052,0.3608,105280.0,105260.0,0.05253301]
[1737294967250,0.6641,105270.0,105260.0,0.06027025]
[1737294967761,0.6641,105270.0,105260.0,0.03653025]
[1737294968856,1.0249,105270.0,105260.0,0.02879301]
[1737294969462,1.0249,105270.0,105250.0,0.02375]
[1737294969660,0.3608,105260.0,105250.0,0.02375]
[1737294970161,1.0249,105270.0,105240.0,0.3608]
[1737294970361,1.0249,105270.0,105240.0,0.37449178]
[1737294970761,1.0249,105270.0,105240.0,0.37449157]
[1737294971156,1.0249,105270.0,105240.0,0.39824157]
[1737294971661,1.03676141,105270.0,105240.0,0.39824157]
[1737294972163,1.03676141,105270.0,105240.0,0.39876931]
[1737294972467,1.03676141,105270.0,105240.0,0.39824157]
[1737294972653,1.03676141,105270.0,105250.0,0.3708]
[1737294972848,1.03676141,105270.0,105250.0,0.38449121]
[1737294973055,1.03676141,105270.0,105250.0,0.38501905]
[1737294973463,0.6641,105270.0,105260.0,0.3608]
[1737294973856,0.4359,105270.0,105260.0,0.37448974]
[1737294974054,1.05732,105290.0,105260.0,0.38448974]
[1737294974258,1.05732,105290.0,105270.0,0.3608]
[1737294974259,1.12992,105290.0,105270.0,0.3608]
[1737294974565,1.12992,105290.0,105280.0,0.3608]
[1737294974763,0.90232,105290.0,105270.0,0.01]
[1737294975058,0.47252391,105300.0,105270.0,0.37501542]
[1737294975260,0.7942,105290.0,105270.0,0.01421542]
[1737294975566,0.4334,105290.0,105270.0,0.38501542]
[1737294975761,0.4334,105290.0,105280.0,0.3608]
[1737294975960,0.4334,105290.0,105280.0,0.01421564]
[1737294976173,0.4334,105290.0,105270.0,0.01052784]
[1737294976467,0.4334,105290.0,105270.0,0.38501523]
[1737294976858,0.4334,105290.0,105270.0,0.55530707]
[1737294977162,0.4334,105290.0,105270.0,0.55530788]
[1737294978354,0.4334,105290.0,105280.0,0.3608]
[1737294978567,0.33932391,105300.0,105280.0,0.37501538]
[1737294978866,0.3276,105300.0,105290.0,0.3608]
[1737294979571,0.1,105300.0,105290.0,0.3608]
[1737294979861,0.1,105300.0,105290.0,0.39341203]
[1737294980053,0.14211923,105310.0,105290.0,1.19544111]
[1737294980258,0.14211923,105310.0,105300.0,0.36132908]
[1737294980460,0.14211923,105310.0,105300.0,0.3608]
[1737294980662,0.82767923,105320.0,105300.0,0.37501333]
[1737294980861,0.82767923,105320.0,105310.0,0.3608]
[1737294981063,0.83932881,105320.0,105310.0,0.3608]
[1737294981364,0.62272881,105320.0,105310.0,0.3608]
[1737294981571,0.62272881,105320.0,105300.0,0.36132914]
[1737294981772,0.61107923,105320.0,105300.0,0.37501347]
[1737294982063,0.46896,105320.0,105300.0,0.54530531]
[1737294982269,0.36871924,105330.0,105310.0,0.3608]
[1737294982464,0.14211923,105330.0,105320.0,0.3608]
[1737294982768,0.14211923,105330.0,105320.0,0.64621032]
[1737294983271,0.50291923,105330.0,105320.0,0.49291032]
[1737294983572,0.3608,105330.0,105320.0,0.02877603]
[1737294985368,1.12964,105330.0,105310.0,0.17029184]
[1737294985573,1.0335,105320.0,105310.0,0.17029184]
[1737294986266,1.0335,105320.0,105290.0,0.75867599]
[1737294986471,1.0335,105320.0,105290.0,0.77236173]
[1737294986673,1.0335,105320.0,105290.0,0.41156173]
[1737294987270,1.0335,105320.0,105290.0,0.77236173]
[1737294987768,1.0335,105320.0,105290.0,0.55423095]
[1737294988474,1.0335,105320.0,105300.0,0.00052836]
[1737294988769,1.0335,105320.0,105290.0,0.5316202]
[1737294988977,1.0335,105320.0,105290.0,0.55423007]
[1737294989174,1.0335,105320.0,105290.0,0.54530512]
[1737294990075,0.3608,105310.0,105290.0,0.54530512]
[1737294990775,0.3608,105310.0,105290.0,0.53109184]
[1737294991077,0.3608,105310.0,105290.0,0.3608]
[1737294992577,0.3608,105310.0,105280.0,0.75867599]
[1737294992578,0.3608,105300.0,105280.0,0.5316202]
[1737294992767,0.5686,105290.0,105280.0,0.17081329]
[1737294992972,0.9956,105290.0,105280.0,0.17029184]
[1737294993673,0.6348,105290.0,105280.0,0.17029184]
[1737294993873,0.6348,105290.0,105280.0,0.18397937]
[1737294994181,0.6348,105290.0,105280.0,0.01368695]
[1737294994382,0.9956,105290.0,105270.0,0.36273646]
[1737294994591,0.9956,105290.0,105270.0,0.37642403]
[1737294994872,0.9956,105290.0,105270.0,0.37591205]
[1737294995078,0.9956,105290.0,105270.0,0.01511205]
[1737294995472,0.9956,105290.0,105270.0,0.37591325]
[1737294996076,0.9956,105290.0,105270.0,0.01511325]
[1737294996277,0.9956,105290.0,105270.0,0.37591325]
[1737294996580,0.9956,105290.0,105270.0,0.01511299]
[1737294996780,0.9956,105290.0,105270.0,0.36222448]
[1737294997082,0.9956,105290.0,105270.0,0.37591293]
[1737294997380,1.10914031,105290.0,105270.0,0.37591293]
[1737294998178,1.10914031,105290.0,105270.0,0.00916143]
[1737294998478,0.3608,105280.0,105260.0,0.19403184]
[1737294998877,0.3608,105280.0,105260.0,0.18398121]
[1737294999184,0.3608,105280.0,105260.0,0.17802931]
[1737294999478,0.3608,105280.0,105260.0,0.53882931]
[1737294999668,0.3608,105270.0,105260.0,0.17029184]
[1737294999875,0.3608,105270.0,105250.0,0.3608]
[1737295000175,0.47434031,105280.0,105250.0,0.00773797]
[1737295000374,0.47434031,105280.0,105250.0,0.01369093]
[1737295000576,0.3608,105270.0,105250.0,0.00773835]
[1737295000771,0.47434031,105280.0,105250.0,0.00773835]
[1737295001085,0.47434031,105280.0,105250.0,0.01369087]
[1737295001287,0.3608,105280.0,105250.0,0.54478262]
[1737295001579,0.3608,105280.0,105250.0,0.18398262]
[1737295001781,0.3608,105280.0,105250.0,0.18398181]
[1737295002081,0.3608,105280.0,105260.0,0.3608]
[1737295002782,0.82968,105280.0,105260.0,0.3608]
[1737295003380,0.82968,105280.0,105250.0,0.17029184]
[1737295003680,0.82968,105280.0,105250.0,0.53882965]
[1737295003986,0.58253386,105280.0,105250.0,0.97832965]
[1737295004175,0.94333386,105280.0,105260.0,0.3608]
[1737295004481,0.94333386,105280.0,105250.0,0.60979184]
[1737295004682,0.94333386,105280.0,105260.0,0.3608]
[1737295004986,0.58253386,105280.0,105260.0,0.36853763]
[1737295005783,0.58253386,105280.0,105260.0,0.36853747]
[1737295006184,0.58253386,105280.0,105270.0,0.3608]
[1737295006677,0.46888,105280.0,105270.0,0.3608]
[1737295008988,0.46888,105280.0,105270.0,0.58727581]
[1737295009382,0.46888,105280.0,105270.0,0.22647581]
[1737295009684,0.82968,105280.0,105260.0,0.3608]
[1737295009889,0.82968,105280.0,105260.0,0.0029757]
[1737295010188,0.82968,105280.0,105250.0,0.97059184]
[1737295010384,0.82968,105280.0,105250.0,0.973568]
[1737295010687,0.00027754,105270.0,105250.0,0.97832991]
[1737295011282,0.00027754,105270.0,105250.0,0.80803807]
[1737295011494,0.00027754,105270.0,105250.0,0.8003]
[1737295011690,0.00027754,105270.0,105250.0,0.80803812]
[1737295012277,0.00027754,105270.0,105250.0,0.81399035]
[1737295012886,0.00027754,105270.0,105260.0,0.3608]
[1737295013081,0.00027754,105270.0,105260.0,0.36853783]
[1737295013484,0.00027754,105270.0,105260.0,0.37448955]
[1737295015886,0.00027754,105270.0,105260.0,0.37500234]
[1737295016489,0.00027754,105270.0,105260.0,0.54529418]
[1737295016692,0.00027754,105270.0,105260.0,0.59286918]
[1737295017488,0.00027754,105270.0,105260.0,0.59286841]
[1737295018092,0.14211923,105290.0,105280.0,0.047566]
[1737295018390,0.16958484,105300.0,105280.0,0.78336739]
[1737295018587,0.16958484,105300.0,105290.0,0.77981288]
[1737295018787,0.16958484,105300.0,105290.0,0.79350139]
[1737295018983,0.16958484,105300.0,105290.0,0.01368851]
[1737295019192,0.16958484,105300.0,105290.0,0.0136855]
[1737295019394,0.16958484,105300.0,105290.0,0.01368529]
[1737295019691,0.42011517,105310.0,105290.0,0.17029184]
[1737295019692,0.53393011,105310.0,105290.0,0.17029184]
[1737295019895,0.2205,105300.0,105290.0,0.17029184]
[1737295020595,0.628857,105300.0,105290.0,0.17029184]
[1737295020790,0.628857,105300.0,105280.0,0.17029184]
[1737295020983,0.7865,105290.0,105280.0,0.17029184]
[1737295021188,0.4257,105290.0,105280.0,0.53109184]
[1737295021487,0.2205,105300.0,105280.0,0.54477916]
[1737295021797,0.59964601,105310.0,105290.0,0.3608]
[1737295021987,0.82014601,105310.0,105290.0,0.3608]
[1737295022186,0.82014601,105310.0,105280.0,0.408366]
[1737295022389,0.82014601,105310.0,105290.0,0.3608]
[1737295022594,0.82014601,105310.0,105290.0,0.37448629]
[1737295023290,0.57793384,105320.0,105300.0,0.3608]
[1737295023487,0.16958484,105320.0,105300.0,0.79268463]
[1737295024390,1.17708484,105330.0,105300.0,0.96297647]
[1737295024590,1.17708484,105330.0,105300.0,1.01052964]
[1737295024997,1.18863983,105330.0,105300.0,1.01052964]
[1737295025587,0.82783983,105330.0,105310.0,0.3608]
[1737295025789,0.65825499,105330.0,105310.0,0.36853432]
[1737295025992,0.65825499,105330.0,105310.0,0.00297474]
[1737295026486,0.65825499,105330.0,105310.0,0.00297452]
[1737295026999,1.01905499,105330.0,105310.0,0.00297452]
[1737295027298,1.01905499,105330.0,105300.0,0.99684584]
[1737295027299,1.06659799,105330.0,105300.0,0.99684584]
[1737295027489,1.06659799,105330.0,105300.0,0.99982043]
[1737295028396,1.06659799,105330.0,105300.0,0.82952859]
[1737295029799,1.06659799,105330.0,105300.0,0.85326859]
[1737295030196,0.41989799,105330.0,105300.0,0.85326859]
[1737295030396,0.42347046,105360.0,105320.0,0.408347]
[1737295030397,0.16958484,105350.0,105320.0,0.408347]
[1737295030596,0.16958484,105350.0,105330.0,0.3608]
[1737295031195,0.18123304,105350.0,105320.0,0.408347]
[1737295031499,0.18123304,105350.0,105330.0,0.3608]
[1737295031994,0.11350851,105340.0,105330.0,0.7956]
[1737295032495,0.11350851,105340.0,105330.0,0.4348]
[1737295032798,0.11350851,105340.0,105320.0,0.408347]
[1737295032993,0.47430851,105340.0,105320.0,0.00297417]
[1737295033195,0.16104651,105340.0,105320.0,0.00297417]
[1737295033499,0.408344,105330.0,105310.0,0.7956]
[1737295033797,1.052244,105330.0,105310.0,0.4348]
[1737295035488,1.052244,105330.0,105310.0,0.2066]
[1737295036088,1.0047,105330.0,105300.0,0.02374]
[1737295036299,0.408352,105310.0,105300.0,0.02374]
[1737295036493,0.408352,105310.0,105290.0,0.52580131]
[1737295036999,0.3608,105300.0,105290.0,0.4342]
[1737295037402,0.3608,105300.0,105290.0,0.207]
[1737295037703,0.047557,105300.0,105290.0,0.207]
[1737295038106,0.408357,105300.0,105290.0,0.207]
[1737295038804,0.408357,105300.0,105280.0,0.59456442]
[1737295039010,0.408361,105290.0,105270.0,0.5762]
[1737295039308,0.408366,105280.0,105260.0,0.37889184]
[1737295039505,0.40837,105270.0,105260.0,0.17029184]
[1737295040102,0.04757,105270.0,105260.0,0.17029184]
[1737295040308,0.40837,105270.0,105260.0,0.17029184]
[1737295040512,0.63557,105270.0,105260.0,0.17029184]
[1737295040717,0.63557,105270.0,105250.0,0.40944184]
[1737295040904,0.3608,105260.0,105250.0,0.40944184]
[1737295041212,0.63557,105270.0,105250.0,0.74649184]
[1737295041912,0.63557,105270.0,105250.0,0.38569184]
[1737295042115,0.588,105270.0,105250.0,0.26595526]
[1737295042305,0.588,105270.0,105250.0,0.65050526]
[1737295042507,0.588,105270.0,105250.0,0.60292626]
[1737295042706,0.635571,105270.0,105250.0,0.60292626]
[1737295042913,0.635571,105270.0,105250.0,0.24212626]
[1737295043112,0.74912757,105270.0,105250.0,0.24212626]
[1737295043515,0.047575,105260.0,105250.0,0.02672626]
[1737295043815,0.5779,105260.0,105240.0,0.17029184]
[1737295044018,0.877179,105250.0,105240.0,0.17029184]
[1737295044313,0.047584,105240.0,105230.0,0.17032326]
[1737295044613,0.256384,105240.0,105230.0,0.17032326]
[1737295044801,0.617184,105240.0,105230.0,0.17032326]
[1737295045709,0.047591,105230.0,105210.0,0.02376]
[1737295045905,0.625491,105230.0,105210.0,0.02376]
[1737295046120,0.047594,105220.0,105200.0,0.3244]
[1737295046306,0.408394,105220.0,105200.0,0.3273773]
[1737295046611,0.408394,105220.0,105200.0,0.3244]
[1737295047113,0.408394,105220.0,105200.0,0.70896]
[1737295048007,0.5779,105230.0,105200.0,0.70896]
[1737295048202,0.625488,105230.0,105210.0,0.3608]
[1737295048407,0.625488,105230.0,105220.0,0.3608]
[1737295048408,0.047588,105230.0,105220.0,0.3608]
[1737295048601,0.047588,105230.0,105200.0,2.266561]
[1737295048817,0.047588,105230.0,105220.0,0.3608]
[1737295049202,0.047588,105230.0,105210.0,0.3608]
[1737295049406,0.047588,105230.0,105220.0,0.3608]
[1737295050009,0.87718,105250.0,105220.0,0.3608]
[1737295050207,0.87718,105250.0,105220.0,0.5693]
[1737295051105,0.88918927,105250.0,105220.0,0.5693]
[1737295051915,0.87718,105250.0,105220.0,0.5693]
[1737295052110,0.87718,105250.0,105230.0,0.2076]
[1737295052622,0.11295888,105250.0,105240.0,0.3608]
[1737295053107,0.11295888,105250.0,105240.0,0.408384]
[1737295053510,0.11295888,105250.0,105240.0,0.3608]
[1737295053913,0.408373,105270.0,105240.0,0.3608]
[1737295054919,0.408373,105270.0,105250.0,0.3608]
[1737295055120,0.408373,105270.0,105240.0,0.3608]
[1737295055919,0.047575,105260.0,105240.0,0.3608]
[1737295056724,0.408375,105260.0,105240.0,0.3608]
[1737295058622,0.408375,105260.0,105240.0,0.67555931]
[1737295059227,0.3608,105260.0,105240.0,0.67555931]
[1737295059521,0.047579,105250.0,105240.0,0.67555931]
[1737295059925,0.047579,105250.0,105240.0,0.31475931]
[1737295061017,0.047579,105250.0,105240.0,0.67555931]
[1737295061517,0.047579,105250.0,105240.0,0.68555931]
[1737295062320,0.16053188,105270.0,105240.0,0.418382]
[1737295062520,0.16053188,105270.0,105250.0,0.7794]
[1737295062719,0.16053188,105270.0,105260.0,0.2218]
[1737295063424,0.16053188,105270.0,105260.0,0.22477605]
[1737295066027,0.16053188,105270.0,105260.0,0.23477605]
[1737295066323,0.1411986,105280.0,105270.0,0.04757]
[1737295066530,0.1411986,105280.0,105270.0,0.42134598]
[1737295066914,0.1411986,105280.0,105270.0,0.42610673]
[1737295067625,0.21700132,105290.0,105270.0,0.42610673]
[1737295067626,0.16943832,105290.0,105270.0,0.42610673]
[1737295067823,0.21699932,105290.0,105280.0,0.8022]
[1737295068021,0.21699932,105290.0,105280.0,0.80993673]
[1737295068229,0.047561,105290.0,105280.0,0.80993673]
[1737295070729,0.047561,105290.0,105280.0,1.03309348]
[1737295071238,0.047561,105290.0,105280.0,1.02833318]
[1737295071623,0.047561,105290.0,105280.0,0.80517518]
[1737295072432,0.047561,105290.0,105280.0,0.82891518]
[1737295074928,0.047561,105290.0,105280.0,0.8336755]
[1737295075134,0.047561,105290.0,105280.0,0.62261518]
[1737295077232,0.047561,105290.0,105280.0,0.26181518]
[1737295077431,0.047561,105290.0,105280.0,0.25884]
[1737295079737,0.047561,105290.0,105280.0,0.02374]
[1737295079932,0.408361,105290.0,105280.0,0.02374]
[1737295080132,0.408361,105290.0,105270.0,0.3708]
[1737295080436,0.408361,105290.0,105270.0,0.41837]
[1737295081435,0.408361,105290.0,105270.0,0.44211]
[1737295082339,0.57779932,105290.0,105270.0,0.44211]
[1737295082737,0.047566,105280.0,105270.0,0.44211]
[1737295082932,0.047566,105280.0,105270.0,0.08131]
[1737295083235,0.047566,105280.0,105270.0,0.03374]
[1737295083541,0.21700432,105280.0,105270.0,0.03374]
[1737295083939,0.21700432,105280.0,105270.0,0.44211]
[1737295085338,0.21700432,105280.0,105270.0,0.33849931]
[1737295085540,0.57780432,105280.0,105270.0,0.33849931]
[1737295086035,0.408366,105280.0,105270.0,0.31475931]
[1737295087339,0.408366,105280.0,105270.0,0.11477014]
[1737295088036,0.55847804,105280.0,105270.0,0.11477014]
[1737295088438,0.55847804,105280.0,105270.0,0.02316883]
[1737295089345,0.58671776,105280.0,105270.0,0.02316883]
[1737295090240,0.58671776,105280.0,105270.0,0.03685766]
[1737295090437,0.58671776,105280.0,105270.0,0.03685748]
[1737295090641,0.22591776,105280.0,105270.0,0.03685748]
[1737295091045,0.60724267,105280.0,105270.0,0.02316883]
[1737295092045,0.60724267,105280.0,105260.0,0.00665662]
[1737295092235,0.5852,105270.0,105260.0,0.02034647]
[1737295092836,0.2244,105270.0,105260.0,0.01439436]
[1737295093141,0.5852,105270.0,105260.0,0.01439436]
[1737295093543,0.7977,105270.0,105260.0,0.01439436]
[1737295094945,0.4369,105270.0,105260.0,0.01439436]
[1737295095739,0.63577667,105270.0,105260.0,0.01439436]
[1737295096147,0.63577667,105270.0,105260.0,0.38114615]
[1737295096345,0.19887667,105270.0,105260.0,0.42872112]
[1737295096555,0.22591776,105280.0,105270.0,0.05422662]
[1737295096852,0.22591776,105280.0,105270.0,0.42871563]
[1737295097145,0.58671776,105290.0,105270.0,0.64701563]
[1737295097949,0.63427876,105290.0,105270.0,0.38114563]
[1737295098348,0.20866814,105280.0,105270.0,0.38114563]
[1737295098552,0.20866814,105280.0,105270.0,0.59464563]
[1737295098756,0.20866814,105280.0,105270.0,0.59464387]
[1737295099050,0.20866814,105280.0,105270.0,0.64221375]
[1737295099444,0.04628103,105280.0,105270.0,0.64221375]
[1737295100247,0.04628103,105280.0,105270.0,0.06791375]
[1737295100453,0.61767755,105290.0,105270.0,0.47784506]
[1737295100649,0.5895,105280.0,105270.0,0.47118844]
[1737295100858,0.861566,105280.0,105270.0,0.45750131]
[1737295101151,1.082366,105280.0,105270.0,0.45750131]
[1737295101652,1.082366,105280.0,105270.0,0.09160131]
[1737295102247,0.04757,105270.0,105260.0,0.08879166]
[1737295102446,0.40837,105270.0,105260.0,0.06]
[1737295105056,0.41968763,105270.0,105260.0,0.06]
[1737295105251,0.047579,105250.0,105240.0,0.02375]
[1737295105448,0.408379,105250.0,105240.0,0.02375]
[1737295105654,0.047585,105240.0,105210.0,0.2710781]
[1737295105851,0.867785,105240.0,105210.0,0.2847725]
[1737295106055,0.867785,105240.0,105210.0,0.6455725]
[1737295106752,0.867785,105240.0,105210.0,0.6693325]
[1737295106948,0.170353,105220.0,105210.0,0.6693325]
[1737295107849,0.170353,105220.0,105210.0,0.68059623]
[1737295108148,0.170353,105220.0,105210.0,0.0455365]
[1737295108349,0.047606,105190.0,105180.0,0.00192156]
[1737295108650,0.047615,105180.0,105150.0,1.03949503]
[1737295108855,0.408417,105170.0,105150.0,0.498623]
[1737295109158,0.3608,105170.0,105140.0,0.00142676]
[1737295109454,0.3608,105170.0,105150.0,0.047624]
[1737295109455,0.047621,105160.0,105150.0,0.047624]
[1737295109855,0.3608,105170.0,105150.0,0.047624]
[1737295110056,0.408418,105170.0,105150.0,0.047624]
[1737295110748,0.408418,105170.0,105140.0,0.43362576]
[1737295110941,0.408418,105170.0,105150.0,0.3608]
[1737295111951,0.408418,105170.0,105150.0,0.408424]
[1737295112855,0.3608,105160.0,105140.0,0.02519676]
[1737295113060,0.408424,105150.0,105120.0,0.00049358]
[1737295113252,0.408424,105150.0,105110.0,0.00049358]
[1737295113253,0.047638,105120.0,105110.0,0.00049358]
[1737295113451,0.408438,105120.0,105110.0,0.00049358]
[1737295113958,1.320652,105140.0,105110.0,0.04813458]
[1737295114148,0.3608,105130.0,105110.0,0.408441]
[1737295114344,0.3608,105130.0,105110.0,0.432221]
[1737295115359,1.32125201,105140.0,105110.0,0.432221]
[1737295115555,1.23100191,105140.0,105110.0,0.38507116]
[1737295115859,1.01810191,105140.0,105120.0,0.047637]
[1737295116054,1.01810191,105140.0,105120.0,0.408437]
[1737295116353,0.877552,105140.0,105120.0,0.36675967]
[1737295116559,0.408433,105130.0,105120.0,0.00595967]
[1737295116748,0.047638,105120.0,105110.0,0.02378]
[1737295116948,0.047642,105110.0,105100.0,0.1]
[1737295117157,0.408442,105110.0,105100.0,0.1]
[1737295117357,0.3608,105120.0,105100.0,0.10596129]
[1737295117559,0.3608,105120.0,105100.0,0.47186129]
[1737295117853,0.408436,105130.0,105100.0,0.47186129]
[1737295118059,0.408436,105130.0,105100.0,0.51489945]
[1737295118360,1.2013717,105140.0,105110.0,0.40893116]
[1737295118361,1.19016992,105140.0,105110.0,0.40893116]
[1737295118654,1.18956991,105140.0,105110.0,0.31439851]
[1737295118954,1.18956991,105140.0,105120.0,0.047638]
[1737295119152,0.82992,105140.0,105120.0,0.41916794]
[1737295119556,0.82992,105140.0,105120.0,0.41916499]
[1737295119858,0.14054991,105150.0,105140.0,0.413529]
[1737295120049,0.14054991,105150.0,105140.0,0.78505599]
[1737295120253,0.14054991,105150.0,105140.0,0.78803511]
[1737295120760,0.1191002,105150.0,105140.0,0.74040611]
[1737295120952,0.3608,105160.0,105140.0,0.37960611]
[1737295121364,0.627517,105170.0,105140.0,0.78803511]
[1737295121560,0.627517,105170.0,105140.0,0.78803345]
[1737295121857,0.627517,105170.0,105140.0,0.42723345]
[1737295122051,0.627517,105170.0,105140.0,0.78803323]
[1737295122657,0.627517,105170.0,105140.0,0.79697036]
[1737295123060,0.3608,105170.0,105150.0,0.408423]
[1737295123364,0.3608,105170.0,105150.0,0.78802723]
[1737295123856,0.3608,105170.0,105160.0,0.00048674]
[1737295124053,0.3608,105170.0,105160.0,0.06181097]
[1737295124254,0.1686599,105180.0,105160.0,0.78851097]
[1737295124652,0.5294599,105180.0,105160.0,0.42720551]
[1737295124847,0.3608,105170.0,105160.0,0.37960423]
[1737295125052,0.408415,105170.0,105160.0,0.3659]
[1737295125858,0.408415,105170.0,105140.0,0.047628]
[1737295126065,0.408415,105170.0,105140.0,0.06133236]
[1737295126250,0.3608,105160.0,105140.0,0.06133236]
[1737295126854,0.11200523,105160.0,105150.0,0.408424]
[1737295127054,0.11200523,105160.0,105150.0,0.42212836]
[1737295127256,0.11200523,105160.0,105150.0,0.408424]
[1737295127455,0.11200523,105160.0,105150.0,0.42212634]
[1737295127960,0.11200523,105170.0,105150.0,0.42212634]
[1737295128158,0.47280523,105170.0,105150.0,0.28425088]
[1737295128672,0.47280523,105170.0,105150.0,0.64505088]
[1737295129163,0.5294599,105180.0,105160.0,0.3608]
[1737295129164,0.5770709,105180.0,105160.0,0.3608]
[1737295129362,0.5294599,105180.0,105160.0,0.42212234]
[1737295129667,0.5294599,105180.0,105160.0,0.42261073]
[1737295129861,0.5294599,105180.0,105160.0,0.41437723]
[1737295130052,0.5294599,105180.0,105160.0,0.42261006]
[1737295130459,0.5294599,105180.0,105160.0,0.6693046]
[1737295130960,0.5770729,105180.0,105160.0,0.03796006]
[1737295131356,0.5294599,105180.0,105160.0,0.03796148]
[1737295132561,0.5294599,105180.0,105160.0,0.0379617]
[1737295133264,0.21498865,105170.0,105150.0,0.85337349]
[1737295133762,0.21498865,105170.0,105150.0,0.80574949]
[1737295133962,0.21498865,105170.0,105160.0,0.04762]
[1737295134359,0.21498865,105170.0,105160.0,0.06389]
[1737295134963,0.21498865,105170.0,105160.0,0.64761454]
[1737295135163,0.21498865,105170.0,105160.0,0.86781454]
[1737295136065,0.19676988,105180.0,105170.0,0.047614]
[1737295136260,0.19676988,105180.0,105170.0,0.408414]
[1737295137263,0.55756988,105180.0,105160.0,0.09160131]
[1737295137461,0.53069044,105180.0,105160.0,0.09160131]
[1737295137769,0.53069044,105180.0,105170.0,0.047614]
[1737295138266,0.50924816,105180.0,105170.0,0.047614]
[1737295138868,0.33935772,105180.0,105170.0,0.047614]
[1737295141168,0.33935772,105180.0,105170.0,0.05357006]
[1737295141563,0.55756988,105190.0,105180.0,0.047611]
[1737295141762,0.19676988,105190.0,105180.0,0.44317539]
[1737295141957,0.19676988,105190.0,105180.0,0.87207539]
[1737295142268,0.3608,105190.0,105180.0,0.51127539]
[1737295142469,0.3608,105190.0,105180.0,0.4289]
[1737295142667,0.3608,105190.0,105170.0,0.047614]
[1737295142867,0.3608,105180.0,105170.0,0.047615]
[1737295143259,0.3608,105180.0,105170.0,0.05237974]
[1737295143463,0.3608,105180.0,105170.0,0.00525672]
[1737295143764,0.408411,105180.0,105150.0,0.00142573]
[1737295143965,0.7216,105160.0,105150.0,0.00142573]
[1737295144362,0.9316,105160.0,105130.0,0.047632]
[1737295144672,0.7216,105140.0,105130.0,0.047632]
[1737295145267,0.89161959,105140.0,105130.0,0.05061126]
[1737295145467,0.89161959,105140.0,105130.0,0.00297926]
[1737295145969,0.89161959,105140.0,105120.0,0.259187]
[1737295146171,0.89161959,105140.0,105120.0,0.00297975]
[1737295146172,0.3608,105130.0,105120.0,0.00297975]
[1737295146676,0.3608,105130.0,105110.0,0.047641]
[1737295146875,0.3608,105120.0,105110.0,0.047641]
[1737295148164,0.5709,105120.0,105090.0,0.22302658]
[1737295148366,0.7216,105100.0,105090.0,0.23447455]
[1737295148573,0.7216,105100.0,105090.0,0.28212655]
[1737295148871,0.7216,105100.0,105090.0,0.06052655]
[1737295149074,0.56200272,105110.0,105070.0,0.5767]
[1737295149269,0.3608,105100.0,105070.0,0.5767]
[1737295149471,0.3608,105100.0,105080.0,0.3608]
[1737295149670,0.3608,105100.0,105090.0,0.047652]
[1737295150175,1.84923022,105100.0,105090.0,1.547652]
[1737295150472,0.3608,105100.0,105090.0,1.547652]
[1737295150979,0.53100184,105100.0,105090.0,1.547652]
[1737295151769,0.47421987,105100.0,105090.0,1.547652]
[1737295152574,0.47421987,105100.0,105090.0,0.047652]
[1737295152883,0.3608,105100.0,105090.0,0.047652]
[1737295153475,0.3608,105100.0,105070.0,0.27507136]
[1737295153673,0.7216,105080.0,105070.0,0.04766]
[1737295154074,0.7216,105080.0,105040.0,1.50142693]
[1737295154275,0.7216,105080.0,105040.0,0.00142693]
[1737295154276,0.3608,105050.0,105040.0,0.00142693]
[1737295154676,0.3608,105050.0,105040.0,0.04910093]
[1737295156180,0.3608,105050.0,105040.0,0.00142693]
[1737295156381,0.3608,105060.0,105050.0,0.04767]
[1737295159499,0.70135948,105070.0,105050.0,0.3608]
[1737295159500,0.2273,105070.0,105050.0,0.3608]
[1737295159700,0.61583432,105080.0,105060.0,0.3608]
[1737295159892,0.61583432,105080.0,105070.0,0.047661]
[1737295160699,0.25503432,105080.0,105070.0,0.047661]
[1737295160900,0.3608,105080.0,105070.0,0.047661]